[Event "Torneo Nuevo Centro. Jornada 8"]
[Site "Chess.com"]
[Date "2020.08.07"]
[Round "9"]
[White "Miranda Calvo, Max Rodrigo"]
[Black "Perrot, Fabien "]
[Result "0-1"]
[WhiteElo "1317"]
[BlackElo "1034"]
[TimeControl "180+2"]
[EndTime "12:14:23 PDT"]
[Termination "Victoria de InspiredMinds por tiempo"]

1. e4 {[%clk 0:01:45.5]} 1... e5 {[%clk 0:02:59.9]} 2. Nf3 {[%clk 0:01:46.3]}
2... Nc6 {[%clk 0:03:00.8]} 3. Bc4 {[%clk 0:01:47]} 3... Bc5 {[%clk 0:03:01.4]}
4. d3 {[%clk 0:01:45.9]} 4... Nf6 {[%clk 0:02:59.5]} 5. Bg5 {[%clk 0:01:45.8]}
5... d6 {[%clk 0:03:00.3]} 6. h3 {[%clk 0:01:45.7]} 6... h6 {[%clk 0:02:59.5]}
7. Bh4 {[%clk 0:01:44.2]} 7... g5 {[%clk 0:03:00]} 8. Bg3 {[%clk 0:01:45.1]}
8... Bd7 {[%clk 0:03:00]} 9. Nbd2 {[%clk 0:01:44.4]} 9... Qe7 {[%clk 0:02:57.4]}
10. O-O {[%clk 0:01:45.2]} 10... O-O-O {[%clk 0:02:57.8]} 11. Qe2 {[%clk
0:01:43.8]} 11... g4 {[%clk 0:02:48.5]} 12. hxg4 {[%clk 0:01:42.1]} 12... Bxg4
{[%clk 0:02:49.1]} 13. a3 {[%clk 0:01:38.7]} 13... Nd4 {[%clk 0:02:42.1]} 14.
Qd1 {[%clk 0:01:38.8]} 14... h5 {[%clk 0:02:22.3]} 15. c3 {[%clk 0:01:38.6]}
15... Nxf3+ {[%clk 0:02:20.8]} 16. Nxf3 {[%clk 0:01:38.6]} 16... Rdg8 {[%clk
0:02:06.3]} 17. b4 {[%clk 0:01:37.2]} 17... Bb6 {[%clk 0:02:03.5]} 18. a4 {[%clk
0:01:32.1]} 18... a6 {[%clk 0:02:04.3]} 19. b5 {[%clk 0:01:30.3]} 19... a5
{[%clk 0:01:59.7]} 20. Bb3 {[%clk 0:01:25]} 20... Nd7 {[%clk 0:01:46.5]} 21. c4
{[%clk 0:01:08]} 21... Nc5 {[%clk 0:01:41.5]} 22. Bc2 {[%clk 0:01:08]} 22... h4
{[%clk 0:01:31.9]} 23. Bh2 {[%clk 0:01:05.6]} 23... h3 {[%clk 0:01:24.9]} 24. g3
{[%clk 0:01:05.9]} 24... Qf8 {[%clk 0:00:56.7]} 25. Qe2 {[%clk 0:01:02.4]} 25...
f5 {[%clk 0:00:55.7]} 26. Bd1 {[%clk 0:01:02.8]} 26... fxe4 {[%clk 0:00:52]} 27.
dxe4 {[%clk 0:01:01.9]} 27... Kb8 {[%clk 0:00:20.4]} 28. Qe3 {[%clk 0:00:49]}
28... Nxa4 {[%clk 0:00:08.3]} 29. Qa3 {[%clk 0:00:37.5]} 29... Nc5 {[%clk
0:00:06.1]} 30. Nd2 {[%clk 0:00:31.7]} 30... Bxd1 {[%clk 0:00:05.4]} 31. Raxd1
{[%clk 0:00:30.3]} 31... Qf7 {[%clk 0:00:06.3]} 32. Kh1 {[%clk 0:00:20.2]} 32...
Qd7 {[%clk 0:00:05.2]} 33. f4 {[%clk 0:00:11.5]} 33... exf4 {[%clk 0:00:03.5]}
34. gxf4 {[%clk 0:00:13.4]} 34... Qf7 {[%clk 0:00:04.5]} 35. Nb3 {[%clk
0:00:09.8]} 35... Nxb3 {[%clk 0:00:03.3]} 36. Qxb3 {[%clk 0:00:11.7]} 36... Rg4
{[%clk 0:00:04.1]} 37. Qc3 {[%clk 0:00:04.9]} 37... Rhh4 {[%clk 0:00:03.8]} 38.
f5 {[%clk 0:00:03.4]} 38... Rxe4 {[%clk 0:00:04]} 39. Rde1 {[%clk 0:00:02.5]}
39... Rxe1 {[%clk 0:00:04.2]} 40. Rxe1 {[%clk 0:00:04.4]} 40... Qd7 {[%clk
0:00:05.4]} 41. f6 {[%clk 0:00:03.7]} 41... Ka7 {[%clk 0:00:05.7]} 42. Rf1
{[%clk 0:00:02.7]} 42... Qe6 {[%clk 0:00:05.9]} 43. f7 {[%clk 0:00:02.3]} 43...
Qc8 {[%clk 0:00:03.5]} 44. f8=Q {[%clk 0:00:02.7]} 44... Qxf8 {[%clk 0:00:03.2]}
0